bitfinex-derivatives/quotes_BTCF0:USTF0_20250325
["timestamp","ask_amount","ask_price","bid_price","bid_amount"]
[1742938863396,0.00017058,87949.0,87948.0,0.3544385]
[1742938863586,0.11384778,87949.0,87948.0,0.5564385]
[1742938864199,0.11339298,87949.0,87948.0,0.5564385]
[1742938864399,0.0008,87949.0,87948.0,0.5564385]
[1742938864704,0.1066,87950.0,87949.0,0.1136772]
[1742938865004,0.1066,87950.0,87949.0,0.7152372]
[1742938865197,0.3276169,87982.0,87959.0,0.1136643]
[1742938865198,0.1140643,87960.0,87959.0,0.1136643]
[1742938865502,0.1148243,87960.0,87959.0,1.0594243]
[1742938865705,0.1140643,87960.0,87959.0,1.0594243]
[1742938866005,0.1140643,87960.0,87959.0,0.8574243]
[1742938866511,0.3195643,87960.0,87959.0,0.8574243]
[1742938866692,0.3204043,87960.0,87959.0,0.8570243]
[1742938869198,0.3204043,87960.0,87959.0,0.74336]
[1742938869392,0.3204043,87960.0,87959.0,0.8570243]
[1742938870614,0.3204043,87960.0,87959.0,0.9610243]
[1742938871104,0.3204043,87960.0,87959.0,0.9615443]
[1742938872206,0.3204043,87960.0,87959.0,0.8575443]
[1742938872399,0.3204043,87960.0,87959.0,0.7442]
[1742938873199,0.3204043,87960.0,87959.0,0.63116]
[1742938873404,0.1136733,87952.0,87951.0,1e-07]
[1742938873607,0.4751133,87952.0,87951.0,0.0993097]
[1742938873806,0.1136914,87938.0,87937.0,0.39]
[1742938874010,0.1713777,87938.0,87937.0,0.22068]
[1742938874497,0.1713777,87938.0,87937.0,0.22]
[1742938874698,0.2758777,87938.0,87937.0,0.22]
[1742938876313,0.28695345,87938.0,87937.0,0.22]
[1742938876612,0.38795345,87938.0,87937.0,0.22]
[1742938877194,0.39613062,87938.0,87937.0,0.22]
[1742938879112,0.49743062,87938.0,87937.0,0.22]
[1742938883925,0.49743062,87938.0,87937.0,1.72]
[1742938884217,0.49743062,87938.0,87937.0,1.7206]
[1742938885718,0.85823062,87938.0,87937.0,1.7206]
[1742938889321,0.54223922,87938.0,87937.0,0.2206]
[1742938890017,0.54223922,87938.0,87937.0,0.5244]
[1742938890207,0.64653922,87938.0,87937.0,0.5244]
[1742938890811,0.64653922,87938.0,87937.0,0.3272]
[1742938891014,0.64653922,87938.0,87937.0,0.2206]
[1742938891230,0.64653922,87938.0,87937.0,0.22]
[1742938897016,0.64653922,87938.0,87937.0,0.314]
[1742938897216,0.64653922,87938.0,87937.0,0.3146]
[1742938898230,0.42143459,87938.0,87937.0,0.3146]
[1742938898430,0.78223459,87938.0,87937.0,0.3146]
[1742938899025,0.42143459,87938.0,87937.0,0.3146]
[1742938899334,0.78223459,87938.0,87937.0,0.3146]
[1742938900432,0.78223459,87938.0,87937.0,0.4152]
[1742938901522,0.64653922,87938.0,87937.0,0.4152]
[1742938903228,0.28573922,87938.0,87937.0,0.4152]
[1742938903535,0.64653922,87938.0,87937.0,0.4152]
[1742938905735,0.86621255,87938.0,87937.0,0.4152]
[1742938912341,0.86621255,87938.0,87937.0,0.2041279]
[1742938912534,0.86621255,87938.0,87924.0,0.1961]
[1742938912535,0.0568525,87928.0,87924.0,0.1961]
[1742938912733,0.1137082,87925.0,87924.0,0.53674]
[1742938912932,0.1147082,87925.0,87924.0,0.53674]
[1742938913128,0.22408537,87925.0,87924.0,0.53674]
[1742938917345,0.27935142,87925.0,87924.0,0.53674]
[1742938921046,0.22408537,87925.0,87924.0,0.53674]
[1742938925348,0.2159082,87925.0,87924.0,0.53674]
[1742938925748,0.2240041,87925.0,87924.0,0.53674]
[1742938928343,0.3236041,87925.0,87924.0,0.53674]
[1742938929353,0.1228041,87925.0,87924.0,0.53674]
[1742938929645,0.1228041,87925.0,87924.0,0.63904]
[1742938931751,0.1780709,87925.0,87924.0,0.63904]
[1742938932947,0.2829709,87925.0,87924.0,0.63904]
[1742938934446,0.3834709,87925.0,87924.0,0.63904]
[1742938938150,0.3834709,87925.0,87924.0,0.44044]
[1742938939060,0.7910709,87925.0,87924.0,0.44044]
[1742938939249,0.7910709,87925.0,87924.0,0.54014]
[1742938939959,0.9030309,87925.0,87924.0,0.54014]
[1742938942959,0.5856709,87925.0,87924.0,0.54014]
[1742938943949,0.5856709,87925.0,87924.0,2.04014]
[1742938944459,0.5856709,87925.0,87924.0,0.54014]
[1742938944959,0.1780709,87925.0,87924.0,0.54014]
[1742938946452,0.1228041,87925.0,87924.0,0.54014]
[1742938949063,0.2203041,87925.0,87924.0,0.54014]
[1742938949962,0.3213041,87925.0,87924.0,0.54014]
[1742938950357,0.3213041,87925.0,87924.0,0.34064]
[1742938950865,0.7289041,87925.0,87924.0,0.34064]
[1742938951163,0.7289041,87925.0,87924.0,0.55054]
[1742938959668,0.7289041,87925.0,87924.0,0.44584]
[1742938959871,0.7289041,87925.0,87924.0,0.54334]
[1742938960669,0.7289041,87925.0,87924.0,0.34064]
[1742938960875,0.8250041,87925.0,87924.0,0.25064]
[1742938961380,0.8250041,87925.0,87924.0,0.35674]
[1742938961883,0.7289041,87925.0,87924.0,0.45744]
[1742938962079,0.7289041,87925.0,87924.0,0.56164]
[1742938962279,0.89942563,87925.0,87924.0,0.56164]
[1742938962487,0.49182563,87925.0,87924.0,0.56164]
[1742938966988,0.3765711,87925.0,87924.0,0.56164]
[1742938969895,0.7373711,87925.0,87924.0,0.56164]
[1742938973788,0.3765711,87925.0,87924.0,0.56164]
[1742938973991,0.7373711,87925.0,87924.0,0.56164]
[1742938979785,0.3765711,87925.0,87924.0,0.56164]
[1742938980085,0.7373711,87925.0,87924.0,0.56164]
[1742938983597,0.3765711,87925.0,87924.0,0.56164]
[1742938983993,0.7373711,87925.0,87924.0,0.56164]
[1742938984483,0.7373711,87925.0,87924.0,0.25064]
[1742938984689,0.8396711,87925.0,87924.0,0.25]
[1742938984893,0.8396711,87925.0,87924.0,0.2506]
[1742938985394,0.8396711,87925.0,87924.0,0.25]
[1742938985395,0.95486698,87925.0,87924.0,0.25]
[1742938985699,0.95486698,87925.0,87924.0,0.25064]
[1742938986288,0.95486698,87925.0,87924.0,0.196083]
[1742938986585,0.1137263,87911.0,87910.0,0.2417843]
[1742938986786,0.1137354,87904.0,87901.0,0.1017]
[1742938986993,0.11477541,87904.0,87903.0,0.27316333]
[1742938987196,0.1260215,87904.0,87903.0,0.35816143]
[1742938987396,0.1260215,87904.0,87903.0,0.35884143]
[1742938987693,0.6884215,87904.0,87903.0,0.35884143]
[1742938987898,0.6884215,87904.0,87903.0,0.26694093]
[1742938988195,0.6884215,87904.0,87903.0,0.15021713]
[1742938988385,0.6884215,87904.0,87903.0,0.01016943]
[1742938988587,0.0568689,87903.0,87895.0,0.00017058]
[1742938988791,0.4745457,87896.0,87895.0,0.24125058]
[1742938988991,0.4755457,87896.0,87895.0,0.24125058]
[1742938989391,0.8831457,87896.0,87895.0,0.17114208]
[1742938989587,1.0922457,87896.0,87895.0,0.00108]
[1742938989788,0.1137561,87888.0,87883.0,0.1967]
[1742938989986,0.22583611,87888.0,87887.0,0.19105513]
[1742938990601,0.43493611,87888.0,87887.0,0.19105513]
[1742938991903,0.43693611,87888.0,87887.0,0.19105513]
[1742938992292,0.43893611,87888.0,87887.0,0.19105513]
[1742938994892,0.84653611,87888.0,87887.0,0.19105513]
[1742938998704,0.84657611,87888.0,87887.0,0.19105513]
[1742939001003,0.52675611,87888.0,87887.0,0.19105513]
[1742939001307,0.17046288,87902.0,87887.0,0.81185513]
[1742939001607,0.001,87897.0,87895.0,0.3608]
[1742939001802,0.00092,87902.0,87899.0,0.1137407]
[1742939002007,0.00092,87902.0,87900.0,0.2084]
[1742939002206,0.00092,87902.0,87900.0,0.4384]
[1742939002400,0.11469881,87902.0,87900.0,0.4384]
[1742939002605,0.1137393,87901.0,87900.0,0.43904]
[1742939002799,0.1137393,87901.0,87900.0,0.4384]
[1742939003005,0.11328426,87901.0,87900.0,0.4384]
[1742939005505,0.11328426,87901.0,87900.0,0.438]
[1742939007410,0.5108,87901.0,87863.0,0.3608]
[1742939007611,0.1137768,87872.0,87849.0,0.40501946]
[1742939007796,0.5862168,87872.0,87849.0,0.40501946]
[1742939008203,0.58576167,87872.0,87871.0,1e-08]
[1742939008404,0.79036167,87872.0,87871.0,1e-08]
[1742939008710,0.79772065,87872.0,87871.0,1e-08]
[1742939008897,0.79772065,87872.0,87871.0,0.00200001]
[1742939010312,0.68466167,87872.0,87871.0,0.00200001]
[1742939010506,0.58476167,87872.0,87871.0,0.16200001]
[1742939010708,0.58476167,87872.0,87871.0,0.16220001]
[1742939010898,0.47404167,87872.0,87871.0,0.16220001]
[1742939011098,0.47404167,87872.0,87871.0,0.16420001]
[1742939011501,0.36172,87872.0,87871.0,0.29420001]
[1742939011810,0.19942,87872.0,87871.0,0.40797811]
[1742939012010,0.19942,87872.0,87871.0,0.29420001]
[1742939012200,0.10437582,87890.0,87871.0,0.29420001]
[1742939012201,0.0568768,87890.0,87871.0,0.55090001]
[1742939012401,0.00125068,87880.0,87879.0,0.1137677]
[1742939012604,0.00125068,87880.0,87879.0,0.6243677]
[1742939013205,0.11501708,87880.0,87879.0,0.7117]
[1742939014615,0.11501708,87880.0,87879.0,0.82246]
[1742939015109,0.11501708,87880.0,87879.0,0.9362277]
[1742939015321,0.11501708,87880.0,87879.0,0.82246]
[1742939016116,0.11456195,87880.0,87879.0,0.82346]
[1742939016321,0.11456195,87880.0,87879.0,2.32346]
[1742939017211,0.11456195,87880.0,87879.0,2.32446]
[1742939017914,0.11456195,87880.0,87879.0,2.32346]
[1742939018114,0.00079555,87880.0,87879.0,2.4372277]
[1742939018421,0.00011555,87880.0,87879.0,2.4362277]
[1742939018614,0.28388799,87882.0,87881.0,0.1137652]
[1742939018803,0.1144046,87882.0,87881.0,0.5843652]
[1742939019909,0.1144046,87882.0,87881.0,0.4706]
[1742939020108,0.1144046,87882.0,87881.0,0.58132]
[1742939020522,0.1144046,87882.0,87881.0,0.4706]
[1742939020716,0.3230046,87882.0,87881.0,0.58132]
[1742939020914,0.3230046,87882.0,87881.0,0.4706]
[1742939021520,0.2185046,87882.0,87881.0,0.4702]
[1742939023710,0.2175046,87882.0,87881.0,0.4702]
[1742939023916,0.21704947,87882.0,87881.0,0.5736]
[1742939024813,0.21804947,87882.0,87881.0,0.5736]
[1742939026121,0.21804947,87882.0,87881.0,0.5732]
[1742939027425,0.31944947,87882.0,87881.0,0.5732]
[1742939028926,0.31899434,87882.0,87881.0,0.5732]
[1742939030420,0.78119434,87882.0,87881.0,0.5732]
[1742939030812,0.36244,87882.0,87881.0,0.5732]
[1742939031129,0.4762039,87882.0,87881.0,0.6869652]
[1742939031312,0.4762039,87882.0,87881.0,2.0728]
[1742939031824,0.6802039,87882.0,87881.0,2.0728]
[1742939033923,0.67974877,87882.0,87881.0,2.0728]
[1742939035817,0.67974877,87882.0,87881.0,2.1796]
[1742939036531,0.67974877,87882.0,87881.0,2.1792]
[1742939037324,0.67974877,87882.0,87881.0,2.2929652]
[1742939038328,0.31894877,87882.0,87881.0,2.2929652]
[1742939038520,0.6795639,87882.0,87881.0,2.2929652]
[1742939038719,0.67978877,87882.0,87881.0,2.2929652]
[1742939039034,0.67978877,87882.0,87881.0,2.1792]
[1742939039929,0.67978877,87882.0,87881.0,0.6792]
[1742939040135,0.6876233,87882.0,87881.0,0.6792]
[1742939040428,0.5874233,87882.0,87881.0,0.6792]
[1742939040632,0.6942233,87882.0,87881.0,0.5724]
[1742939040836,0.6942233,87882.0,87881.0,0.469]
[1742939041041,0.6942233,87882.0,87881.0,0.2375534]
[1742939041334,0.6942233,87882.0,87867.0,0.36]
[1742939041335,0.1137768,87872.0,87867.0,0.35]
[1742939041523,0.4745768,87872.0,87871.0,0.41113521]
[1742939041924,0.47517681,87872.0,87871.0,0.41113521]
[1742939042137,0.68257681,87872.0,87871.0,0.41113521]
[1742939042538,0.68257681,87872.0,87871.0,0.41313521]
[1742939043527,0.68257681,87872.0,87871.0,0.41513521]
[1742939044935,0.68257681,87872.0,87871.0,0.27513521]
[1742939045337,0.79329681,87872.0,87871.0,0.27513521]
[1742939046437,0.79329681,87872.0,87871.0,0.27445521]
[1742939047534,0.68257681,87872.0,87871.0,0.27445521]
[1742939047928,0.68257681,87872.0,87871.0,0.27517521]
[1742939050939,0.36140001,87872.0,87871.0,0.53895331]
[1742939051139,0.36925227,87872.0,87871.0,0.53895331]
[1742939051334,0.36925227,87872.0,87871.0,2.03895331]
[1742939051929,0.36865226,87872.0,87871.0,2.03895331]
[1742939052133,0.36933226,87872.0,87871.0,2.03895331]
[1742939052340,0.3608,87872.0,87871.0,2.03895331]
[1742939052549,0.36148,87872.0,87871.0,2.03895331]
[1742939052843,0.4752968,87872.0,87871.0,1.92317521]
[1742939053044,0.4752568,87872.0,87871.0,1.92517521]
[1742939053342,0.4752568,87872.0,87871.0,2.24865331]
[1742939053526,0.48313156,87872.0,87871.0,2.24865331]
[1742939053731,0.48313156,87872.0,87871.0,2.24559521]
[1742939054248,0.48313156,87872.0,87871.0,2.24359521]
[1742939054435,0.58973156,87872.0,87871.0,2.24459521]
[1742939054845,0.5818568,87872.0,87871.0,2.24459521]
[1742939055933,0.5818568,87872.0,87871.0,2.24359521]
[1742939056744,0.5897129,87872.0,87871.0,2.24359521]
[1742939057333,0.2289129,87872.0,87871.0,2.24359521]
[1742939057534,0.5890329,87872.0,87871.0,2.24359521]
[1742939057740,0.5897129,87872.0,87871.0,2.24359521]
[1742939058044,0.5897129,87872.0,87871.0,2.35737331]
[1742939059038,0.69182468,87872.0,87871.0,2.35737331]
[1742939059345,0.69182468,87872.0,87871.0,0.63949521]
[1742939059644,0.69182468,87872.0,87871.0,0.85847331]
[1742939059939,0.68396858,87872.0,87871.0,2.35847331]
[1742939062240,0.68396858,87872.0,87871.0,2.13397521]
[1742939062648,0.5818568,87872.0,87871.0,2.13397521]
[1742939063039,0.6874568,87872.0,87871.0,2.24775331]
[1742939063743,0.6874568,87872.0,87871.0,2.03695331]
[1742939064044,0.6874568,87872.0,87871.0,0.27317521]
[1742939065145,0.6874568,87872.0,87871.0,0.37437521]
[1742939065342,0.6874568,87872.0,87871.0,0.47297521]
[1742939067637,0.6874568,87872.0,87871.0,0.69297521]
[1742939069842,0.3266568,87872.0,87871.0,0.69297521]
[1742939070147,0.6874568,87872.0,87871.0,0.69297521]
[1742939072054,0.82361777,87872.0,87871.0,0.69297521]
[1742939074459,0.82361777,87872.0,87871.0,0.49317521]
[1742939077261,0.6874568,87872.0,87871.0,0.49317521]
[1742939080263,0.3266568,87872.0,87871.0,0.49317521]
[1742939080660,0.6874568,87872.0,87871.0,0.49317521]
[1742939080861,0.3266568,87872.0,87871.0,0.49317521]
[1742939081370,0.6874568,87872.0,87871.0,0.49317521]
[1742939082469,0.6874568,87872.0,87871.0,0.59737521]
[1742939082671,0.6874568,87872.0,87871.0,0.70207521]
[1742939083259,0.6874568,87872.0,87871.0,0.59737521]
[1742939086172,0.6874568,87872.0,87871.0,0.49317521]
[1742939089356,0.6874568,87872.0,87871.0,0.49272]
[1742939089561,0.1137872,87864.0,87857.0,0.39]
[1742939089766,0.1137872,87864.0,87863.0,0.21089068]
[1742939089767,0.5861072,87864.0,87863.0,0.21089068]
[1742939091072,0.5861072,87864.0,87863.0,0.21389068]
[1742939091277,0.5865072,87864.0,87863.0,0.21389068]
[1742939091770,0.5865072,87864.0,87863.0,0.21689068]
[1742939092869,0.7955072,87864.0,87863.0,0.21689068]
[1742939093075,0.8508151,87864.0,87863.0,0.21689068]
[1742939093376,0.8508151,87864.0,87863.0,0.21617068]
[1742939097767,0.7955072,87864.0,87863.0,0.21617068]
[1742939097966,0.7955072,87864.0,87863.0,0.21685068]
[1742939098168,0.8998072,87864.0,87863.0,0.21685068]
[1742939102581,0.4757872,87864.0,87863.0,0.21685068]
[1742939102780,0.0012,87864.0,87863.0,0.33063918]
[1742939103084,0.1149872,87864.0,87863.0,1.81377068]
[1742939103279,0.1141872,87864.0,87863.0,1.91637068]
[1742939103580,0.1141872,87864.0,87863.0,2.22015918]
[1742939104176,0.1141872,87864.0,87863.0,2.10637068]
[1742939106685,0.1141872,87864.0,87863.0,2.21709068]
[1742939107681,0.12572755,87864.0,87863.0,2.21709068]
[1742939108478,0.12572755,87864.0,87863.0,2.21773068]
[1742939111483,0.12572755,87864.0,87863.0,2.33151918]
[1742939112181,0.12572755,87864.0,87863.0,2.21773068]
[1742939115687,0.12644755,87864.0,87863.0,2.21773068]
[1742939116307,0.12572755,87864.0,87863.0,2.21773068]
[1742939118087,0.22432755,87864.0,87863.0,2.21773068]
[1742939118488,0.22512755,87864.0,87863.0,2.21773068]
[1742939118690,0.22432755,87864.0,87863.0,2.10701068]
[1742939118992,0.32814755,87864.0,87863.0,2.10701068]
[1742939120195,0.68894755,87864.0,87863.0,2.10701068]
[1742939122590,0.68894755,87864.0,87863.0,2.00441068]
[1742939122790,0.68894755,87864.0,87863.0,0.40681068]
[1742939124587,0.32814755,87864.0,87863.0,0.40681068]
[1742939124787,0.68894755,87864.0,87863.0,0.40681068]
[1742939125387,0.82509128,87864.0,87863.0,0.40681068]
[1742939125787,0.46429128,87864.0,87863.0,0.40681068]
[1742939125995,0.82509128,87864.0,87863.0,0.40681068]
[1742939129293,0.68894755,87864.0,87863.0,0.40681068]
[1742939137093,0.32814755,87864.0,87863.0,0.40681068]
[1742939137293,0.68894755,87864.0,87863.0,0.40681068]
[1742939137702,0.32814755,87864.0,87863.0,0.40681068]
[1742939137904,0.68894755,87864.0,87863.0,0.40681068]
[1742939139705,0.32814755,87864.0,87863.0,0.40681068]
[1742939140005,0.68894755,87864.0,87863.0,0.40681068]
[1742939141306,0.32814755,87864.0,87863.0,0.40681068]
[1742939141500,0.68894755,87864.0,87863.0,0.40681068]
[1742939141696,0.32814755,87864.0,87863.0,0.40681068]
[1742939141899,0.68894755,87864.0,87863.0,0.40681068]
[1742939143001,0.68894755,87864.0,87863.0,0.31927798]
[1742939145408,0.68894755,87864.0,87863.0,0.42877798]
[1742939146300,0.68894755,87864.0,87863.0,0.31927798]
[1742939147102,0.68894755,87864.0,87863.0,0.42347798]
[1742939147301,0.32814755,87864.0,87863.0,0.42347798]
[1742939147503,0.68894755,87864.0,87863.0,0.42347798]
[1742939148602,0.68894755,87864.0,87863.0,0.63747798]
[1742939150119,0.85918585,87864.0,87863.0,0.63747798]
[1742939151317,0.75608585,87864.0,87863.0,0.63747798]
[1742939152813,0.65748585,87864.0,87863.0,0.63747798]
[1742939153715,0.76768585,87864.0,87863.0,0.63747798]
[1742939155418,0.76768585,87864.0,87863.0,0.42347798]
[1742939155713,0.87008585,87864.0,87863.0,0.53367798]
[1742939156016,0.75515475,87864.0,87863.0,0.53367798]
[1742939159416,0.95970802,87864.0,87863.0,0.53367798]
[1742939164825,0.96270802,87864.0,87863.0,0.52767798]
[1742939165014,0.96670802,87864.0,87863.0,0.52767798]
[1742939166814,0.96670802,87864.0,87863.0,0.31327798]
[1742939167022,0.96670802,87864.0,87863.0,0.31263798]
[1742939167214,0.96670802,87864.0,87863.0,0.42553798]
[1742939168720,0.60590802,87864.0,87863.0,0.42553798]
[1742939169117,0.96670802,87864.0,87863.0,0.42553798]
[1742939170716,0.60590802,87864.0,87863.0,0.42553798]
[1742939170911,0.96670802,87864.0,87863.0,0.42553798]
[1742939171120,0.60590802,87864.0,87863.0,0.42553798]
[1742939171324,0.96670802,87864.0,87863.0,0.42553798]
[1742939174530,0.96670802,87864.0,87863.0,0.53723798]
[1742939175325,0.96670802,87864.0,87863.0,0.64523798]
[1742939177034,0.86430802,87864.0,87863.0,0.64523798]
[1742939177219,0.65975475,87864.0,87863.0,0.64523798]
[1742939178334,0.77375475,87864.0,87863.0,0.64523798]
[1742939178834,0.77375475,87864.0,87863.0,0.31323798]
[1742939179025,0.77375475,87864.0,87863.0,0.42573798]
[1742939179226,0.77375475,87864.0,87863.0,0.42633798]
[1742939182426,0.41295475,87864.0,87863.0,0.42633798]
[1742939182625,0.88775475,87864.0,87863.0,0.42633798]
[1742939182920,0.88775475,87864.0,87863.0,0.31323798]
[1742939183528,0.88775475,87864.0,87863.0,0.12323798]
[1742939183728,0.88775475,87864.0,87863.0,0.23983798]
[1742939185135,0.88439475,87864.0,87863.0,0.34993798]
[1742939187924,0.88439475,87864.0,87863.0,0.23983798]
[1742939188139,0.88439475,87864.0,87863.0,0.23923798]
[1742939188441,0.88439475,87864.0,87863.0,0.23983798]
[1742939189541,0.88439475,87864.0,87863.0,0.07389228]
[1742939189742,0.88439475,87864.0,87863.0,8e-08]
[1742939189939,0.1137885,87863.0,87862.0,8e-08]
[1742939190138,0.1145885,87863.0,87862.0,0.20691188]
[1742939190338,0.3360885,87863.0,87862.0,0.14523228]
[1742939191035,0.4860885,87863.0,87862.0,0.14523228]
[1742939191238,0.3400885,87863.0,87862.0,0.14523228]
[1742939191436,0.3430885,87863.0,87862.0,0.14523228]
[1742939191637,0.3430885,87863.0,87862.0,0.14583228]
[1742939192135,0.7038885,87863.0,87862.0,0.14583228]
[1742939192445,0.8145285,87863.0,87862.0,0.14523228]
[1742939192934,0.96351076,87863.0,87862.0,0.14523228]
[1742939193132,0.96225076,87863.0,87862.0,0.14595228]
[1742939193437,0.85265076,87863.0,87862.0,0.14655228]
[1742939193647,0.74201076,87863.0,87862.0,0.14583228]
[1742939196645,0.5376957,87863.0,87862.0,0.14583228]
[1742939197651,0.1768957,87863.0,87862.0,0.14583228]
[1742939197841,0.5376957,87863.0,87862.0,0.14583228]
[1742939199154,0.1768957,87863.0,87862.0,0.14583228]
[1742939199355,0.5376957,87863.0,87862.0,0.14583228]
[1742939202955,0.7577957,87863.0,87862.0,0.14523228]
[1742939205262,0.5376957,87863.0,87862.0,0.14523228]
[1742939205562,0.5376957,87863.0,87862.0,0.14583228]
[1742939206976,0.6468957,87863.0,87862.0,0.14583228]
[1742939208271,0.7597957,87863.0,87862.0,0.14583228]
[1742939208480,0.8762957,87863.0,87862.0,0.14583228]
[1742939208772,0.8762957,87863.0,87862.0,0.14523228]
[1742939216571,0.5154957,87863.0,87862.0,0.14523228]
[1742939216777,0.5154957,87863.0,87862.0,0.14595228]
[1742939216778,0.8762957,87863.0,87862.0,0.14595228]
[1742939217082,0.8762957,87863.0,87862.0,0.14523228]
[1742939218283,0.5154957,87863.0,87862.0,0.14523228]
[1742939218467,0.8762957,87863.0,87862.0,0.14583228]
[1742939218671,0.8762957,87863.0,87862.0,0.14523228]
[1742939224278,0.8704357,87863.0,87862.0,0.14523228]
[1742939224480,0.8704357,87863.0,87862.0,0.14583228]
[1742939224685,0.8704357,87863.0,87862.0,0.25143228]
[1742939224982,0.8704357,87863.0,87862.0,0.25203228]
[1742939225182,0.8704357,87863.0,87862.0,0.36873228]
[1742939226183,1.2312357,87863.0,87862.0,0.36873228]
[1742939228689,0.5096357,87863.0,87862.0,0.36873228]
[1742939228878,1.2312357,87863.0,87862.0,0.36873228]
[1742939230686,1.38002091,87863.0,87862.0,0.36873228]
[1742939231887,1.26938091,87863.0,87862.0,0.36873228]
[1742939232089,1.37998091,87863.0,87862.0,0.36873228]
[1742939234094,1.2311957,87863.0,87862.0,0.36873228]
[1742939234796,0.5095957,87863.0,87862.0,0.36873228]
[1742939234989,1.1182957,87863.0,87862.0,0.36873228]
[1742939235186,0.8984957,87863.0,87862.0,0.36873228]
[1742939235391,1.0090957,87863.0,87862.0,0.36873228]
[1742939236285,0.8984957,87863.0,87862.0,0.36873228]
[1742939237088,0.7847072,87863.0,87862.0,0.36873228]
[1742939237886,0.8984957,87863.0,87862.0,0.36873228]
[1742939239998,0.8984957,87863.0,87862.0,1.86873228]
[1742939241388,0.8431885,87863.0,87862.0,1.86873228]
[1742939241998,0.1215885,87863.0,87862.0,1.86873228]
[1742939243594,0.0078,87863.0,87862.0,2.09252208]
[1742939243794,0.1207885,87863.0,87862.0,2.09252208]
[1742939243991,0.0078,87863.0,87862.0,2.09252208]
[1742939244186,0.056889,87871.0,87862.0,2.54642708]
[1742939244405,0.1706769,87868.0,87867.0,0.1137796]
[1742939244586,0.0575714,87868.0,87867.0,0.6244996]
[1742939244983,0.24985262,87869.0,87868.0,0.113782]
[1742939245189,0.24985262,87869.0,87868.0,0.797042]
[1742939245488,0.13621672,87869.0,87868.0,0.797042]
[1742939245684,0.11378,87870.0,87869.0,0.1137794]
[1742939245891,0.004,87871.0,87870.0,0.1137794]
[1742939246097,0.00076,87871.0,87870.0,1.1658394]
[1742939246298,0.00017068,87872.0,87871.0,0.1137781]
[1742939246498,0.1137692,87878.0,87874.0,0.1137742]
[1742939246700,0.17083438,87875.0,87874.0,0.6045342]
[1742939247195,0.28460728,87875.0,87874.0,0.6045342]
[1742939247994,0.28460728,87875.0,87874.0,0.6041342]
[1742939248500,0.00068,87875.0,87874.0,0.6041342]
[1742939248897,0.0568858,87877.0,87876.0,0.1137716]
[1742939249202,0.0568858,87877.0,87876.0,0.5937716]
[1742939249391,0.0568858,87877.0,87876.0,2.0937716]
[1742939249593,0.0568858,87877.0,87876.0,2.3169716]
[1742939249791,0.0568858,87877.0,87876.0,2.32561267]
[1742939250295,0.0598858,87877.0,87876.0,2.32561267]
[1742939250791,0.0628858,87877.0,87876.0,2.32561267]
[1742939251398,0.006,87877.0,87876.0,2.32561267]
[1742939251898,0.1197703,87877.0,87876.0,2.32561267]
[1742939252596,0.006,87877.0,87876.0,2.32561267]
[1742939253602,0.21575608,87886.0,87877.0,0.0568845]
[1742939253900,0.10199698,87886.0,87882.0,0.1137639]
[1742939254100,0.10199698,87886.0,87885.0,0.11376]
[1742939254401,0.10199698,87886.0,87885.0,0.38444]
[1742939254604,0.10275698,87886.0,87885.0,0.38444]
[1742939254804,0.10275698,87886.0,87885.0,0.51444]
[1742939255005,0.10275698,87886.0,87885.0,0.72984]
[1742939255408,0.10230185,87886.0,87885.0,0.72984]
[1742939255594,0.10230185,87886.0,87885.0,2.22984]
[1742939255795,0.00076,87886.0,87885.0,2.22984]
[1742939256002,0.1137537,87890.0,87889.0,0.1137548]
[1742939256203,0.1137537,87890.0,87889.0,0.7243148]
[1742939256399,0.1137537,87890.0,87889.0,0.7250748]
[1742939256603,0.10154185,87892.0,87891.0,0.1137522]
[1742939256901,0.10154185,87892.0,87891.0,0.6237522]
[1742939257208,0.21529275,87892.0,87891.0,0.6244322]
[1742939257505,0.10222185,87892.0,87891.0,0.8436322]
[1742939257705,0.10154185,87892.0,87891.0,0.8436322]
[1742939258301,0.10154185,87892.0,87891.0,0.8432322]
[1742939259203,0.1137358,87904.0,87899.0,0.0568706]
[1742939259393,0.28427438,87903.0,87902.0,0.474538]
[1742939259599,0.28427438,87903.0,87902.0,0.975258]
[1742939259903,0.17087438,87903.0,87902.0,0.975258]
[1742939260119,0.00072,87903.0,87902.0,0.975258]
[1742939260407,0.1047,87913.0,87911.0,0.1137263]
[1742939260597,0.1047,87913.0,87911.0,1.0860463]
[1742939260797,0.1047,87913.0,87911.0,2.5860463]
[1742939260997,0.17032506,87920.0,87918.0,0.113716]
[1742939261198,0.113716,87919.0,87918.0,0.374636]
[1742939261398,0.218416,87919.0,87918.0,0.374636]
[1742939262305,0.331316,87919.0,87918.0,0.374636]
[1742939262606,0.332236,87919.0,87918.0,0.374636]
[1742939263506,0.33178104,87919.0,87918.0,0.374636]
[1742939264500,0.33086104,87919.0,87918.0,0.374636]
[1742939264706,0.33086104,87919.0,87918.0,0.26092]
[1742939264901,0.33178104,87919.0,87918.0,0.26092]
[1742939265107,0.33178104,87919.0,87918.0,0.0846857]
[1742939266207,0.33178104,87919.0,87918.0,0.0842857]
[1742939269504,0.33132608,87919.0,87918.0,0.0842857]
[1742939272015,0.33132608,87919.0,87918.0,0.0838857]
[1742939273714,0.33132608,87919.0,87918.0,0.0829657]
[1742939274512,0.33087112,87919.0,87918.0,0.0829657]
[1742939277506,0.33087112,87919.0,87918.0,0.0825657]
[1742939280011,0.33041616,87919.0,87918.0,0.0825657]
[1742939280910,0.1137173,87918.0,87917.0,8e-05]
[1742939281114,0.32931731,87918.0,87917.0,8e-05]
[1742939282322,0.1137289,87909.0,87908.0,0.3608]
[1742939282506,0.1147289,87909.0,87908.0,0.42176]
[1742939282707,0.3297289,87909.0,87908.0,0.42176]
[1742939284019,0.3297289,87909.0,87908.0,1.56096]
[1742939284413,0.3297289,87909.0,87908.0,1.92176]
[1742939284613,0.3287289,87909.0,87908.0,1.92176]
[1742939287724,0.3287289,87909.0,87908.0,2.03156]
[1742939290123,0.3287289,87909.0,87908.0,2.13726]
[1742939290524,0.3287289,87909.0,87908.0,2.03156]
[1742939294616,0.3287289,87909.0,87908.0,1.67076]
[1742939294823,0.3287289,87909.0,87908.0,2.03156]
[1742939296031,0.2196289,87909.0,87908.0,2.03156]
[1742939299232,0.2196289,87909.0,87908.0,2.23576661]
[1742939299929,0.3247289,87909.0,87908.0,2.23576661]
[1742939300525,0.3247289,87909.0,87908.0,0.73576661]
[1742939300727,0.3253689,87909.0,87908.0,0.73576661]
[1742939303430,0.3253689,87909.0,87908.0,0.53156]
[1742939308142,0.3253689,87909.0,87908.0,0.64376]
[1742939312447,0.3253689,87909.0,87908.0,0.28296]
[1742939312646,0.3253689,87909.0,87908.0,0.64376]
[1742939315741,0.3253689,87909.0,87908.0,0.28296]
[1742939315941,0.3253689,87909.0,87908.0,0.64376]